bitfinex-derivatives/quotes_ETHF0:USTF0_20250501
["timestamp","ask_amount","ask_price","bid_price","bid_amount"]
[1746120086983,3.4485,1863.9,1863.8,1.07267]
[1746120087490,1.0727,1863.8,1863.7,12.11481]
[1746120087693,5.8501,1863.8,1863.7,6.7583]
[1746120088189,5.8501,1863.8,1863.7,5.932]
[1746120089489,1.07281,1863.6,1863.5,0.8263]
[1746120089790,1.07281,1863.6,1863.5,1.89917]
[1746120090693,2.76739,1863.7,1863.6,1.07281]
[1746120091193,1.07281,1863.6,1863.5,1.89913]
[1746120091390,1.07287,1863.5,1863.4,9.411]
[1746120091593,3.58707,1863.5,1863.4,5.932]
[1746120091996,3.58707,1863.5,1863.4,7.00493]
[1746120092297,4.28055,1863.8,1863.7,1.07273]
[1746120092483,3.2078,1863.8,1863.7,1.07273]
[1746120092688,4.2805,1863.8,1863.7,1.07273]
[1746120094801,1.0727,1863.8,1863.7,1.07273]
[1746120098095,1.07275,1863.7,1863.6,0.8539]
[1746120098398,1.07281,1863.6,1863.5,0.8239]
[1746120098600,1.07287,1863.5,1863.4,11.32758]
[1746120098798,1.07287,1863.5,1863.4,12.15738]
[1746120100009,1.85493,1863.6,1863.5,1.07287]
[1746120100611,1.85493,1863.6,1863.5,2.75327]
[1746120100808,1.07283,1863.6,1863.5,2.75327]
[1746120101308,1.07279,1863.7,1863.6,1.07275]
[1746120102811,1.07281,1863.6,1863.5,1.6804]
[1746120103005,4.28061,1863.6,1863.5,1.6804]
[1746120103615,5.86811,1863.6,1863.5,1.6804]
[1746120103808,5.86811,1863.6,1863.5,2.75327]
[1746120104114,5.86811,1863.6,1863.5,1.6804]
[1746120104310,5.86811,1863.6,1863.5,2.75327]
[1746120105208,4.7953,1863.6,1863.4,11.0845]
[1746120105513,2.76117,1863.5,1863.4,6.7747]
[1746120106015,2.76117,1863.5,1863.4,5.932]
[1746120107215,1.07287,1863.5,1863.4,7.00493]
[1746120107407,1.07287,1863.5,1863.4,9.41803]
[1746120107812,1.07287,1863.5,1863.4,2.4131]
[1746120108013,2.66757,1863.5,1863.4,2.4131]
[1746120108314,2.66757,1863.5,1863.4,1.6002]
[1746120109210,1.5947,1863.5,1863.2,0.8306]
[1746120109415,1.07298,1863.3,1863.2,3.50384]
[1746120111119,1.07298,1863.3,1863.2,2.4308]
[1746120111319,2.68328,1863.3,1863.2,3.50384]
[1746120111618,2.68328,1863.3,1863.2,2.4308]
[1746120112723,2.68328,1863.3,1863.2,3.50384]
[1746120113020,2.68328,1863.3,1863.2,2.4308]
[1746120113221,1.07294,1863.4,1863.3,1.07298]
[1746120113422,1.07292,1863.5,1863.4,1.07287]
[1746120113626,1.07292,1863.5,1863.4,1.87097]
[1746120113917,1.07273,1863.8,1863.7,1.07271]
[1746120114523,4.28048,1863.9,1863.8,1.0727]
[1746120114731,3.2078,1863.9,1863.8,1.0727]
[1746120115322,6.39665818,1864.1,1864.0,1.07258]
[1746120115819,1.0726,1864.0,1863.9,1.07259]
[1746120116015,1.07265,1863.9,1863.8,1.07264]
[1746120116516,1.07262,1864.0,1863.9,1.0726]
[1746120116923,1.07258,1864.0,1863.9,1.0726]
[1746120117616,1.07268,1863.9,1863.8,1.07265]
[1746120118119,1.0727,1863.8,1863.7,5.932]
[1746120118416,3.547,1863.8,1863.7,5.932]
[1746120118623,1.0727,1863.8,1863.7,7.00475]
[1746120119419,1.07275,1863.7,1863.6,1.93708]
[1746120121426,1.07274,1863.8,1863.7,1.07272]
[1746120122023,1.07269,1863.9,1863.8,1.07267]
[1746120123418,1.07264,1864.0,1863.9,1.07262]
[1746120126016,1.07256,1864.1,1864.0,1.07253]
[1746120126222,1.07244,1864.3,1864.2,1.07241]
[1746120127026,1.07247,1864.2,1864.1,0.8522]
[1746120127323,1.07247,1864.2,1864.1,1.07248]
[1746120127531,4.28032,1864.2,1864.1,1.07252]
[1746120129031,1.07252,1864.2,1864.1,1.07252]
[1746120129626,1.07245,1864.3,1864.2,1.07241]
[1746120129934,4.28018,1864.4,1864.3,1.91471]
[1746120130823,1.07238,1864.4,1864.3,1.91471]
[1746120133727,1.07241,1864.3,1864.2,2.69721]
[1746120134131,1.07241,1864.3,1864.2,1.6248]
[1746120134332,3.65421,1864.3,1864.2,1.6248]
[1746120134529,3.65421,1864.3,1864.2,2.69727]
[1746120134730,3.65421,1864.3,1864.2,1.6248]
[1746120135529,1.91791,1864.3,1864.2,2.69727]
[1746120135831,1.91791,1864.3,1864.2,1.6248]
[1746120136331,1.91791,1864.3,1864.2,2.69727]
[1746120136532,1.07241,1864.3,1864.2,2.69727]
[1746120138134,5.9785,1864.4,1864.3,1.07241]
[1746120138336,4.2802,1864.4,1864.3,3.53231]
[1746120138536,1.0724,1864.4,1864.3,3.53231]
[1746120140142,1.07234,1864.5,1864.4,1.07231]
[1746120140331,1.07234,1864.5,1864.4,3.55361]
[1746120141926,1.07234,1864.5,1864.4,2.4813]
[1746120142129,1.07234,1864.5,1864.4,3.55365]
[1746120142641,4.28014,1864.5,1864.4,2.4813]
[1746120142840,1.07241,1864.3,1864.2,6.7638]
[1746120143139,4.28021,1864.3,1864.2,9.43477]
[1746120143639,6.65551,1864.3,1864.2,9.43477]
[1746120144238,6.65551,1864.3,1864.2,8.3623]
[1746120144429,6.65551,1864.3,1864.2,9.43477]
[1746120145539,3.44771,1864.3,1864.2,9.43477]
[1746120145738,1.07241,1864.3,1864.2,9.43477]
[1746120145941,1.07241,1864.3,1864.2,3.50277]
[1746120147039,1.07241,1864.3,1864.2,2.4303]
[1746120147239,1.07241,1864.3,1864.2,3.50277]
[1746120150240,4.28021,1864.3,1864.2,2.4303]
[1746120150440,5.98361,1864.3,1864.2,2.4303]
[1746120150838,5.98361,1864.3,1864.2,1.5985]
[1746120151035,5.98361,1864.3,1864.1,10.4835]
[1746120151036,1.07247,1864.2,1864.1,10.4835]
[1746120151243,2.77587,1864.2,1864.1,12.1126]
[1746120153640,2.77587,1864.2,1864.1,11.0401]
[1746120153845,2.77587,1864.2,1864.1,12.11262]
[1746120155546,4.28026,1864.3,1864.2,1.07247]
[1746120155749,4.28026,1864.3,1864.2,2.78717]
[1746120158241,3.2078,1864.3,1864.2,2.78717]
[1746120161147,4.28015,1864.4,1864.3,1.07241]
[1746120161348,4.28015,1864.4,1864.3,3.46451]
[1746120164352,3.2078,1864.4,1864.3,3.46451]
[1746120164744,4.28015,1864.4,1864.3,3.46451]
[1746120165044,3.2078,1864.4,1864.3,3.46451]
[1746120165350,4.28015,1864.4,1864.3,3.46451]
[1746120165549,1.07235,1864.4,1864.3,3.46451]
[1746120167146,8.28582,1864.6,1864.3,3.46451]
[1746120167338,8.28582,1864.6,1864.4,3.51039]
[1746120167339,1.07234,1864.5,1864.4,3.51039]
[1746120168046,2.77204,1864.5,1864.4,3.51039]
[1746120168251,2.77204,1864.5,1864.4,1.07229]
[1746120168444,1.07241,1864.4,1864.3,1.07236]
[1746120168645,2.77211,1864.4,1864.3,1.07236]
[1746120169349,2.77211,1864.4,1864.3,2.78176]
[1746120170955,2.77211,1864.4,1864.3,1.07236]
[1746120172453,2.77211,1864.4,1864.3,2.66396]
[1746120175762,2.77211,1864.4,1864.3,2.66401]
[1746120175959,4.6413705,1864.5,1864.4,1.07235]
[1746120176159,4.6413705,1864.5,1864.4,2.65515]
[1746120177154,4.6413105,1864.5,1864.4,2.65515]
[1746120177561,4.6413105,1864.5,1864.4,1.5828]
[1746120177859,6.2041105,1864.5,1864.4,1.5828]
[1746120178061,1.07241,1864.3,1864.2,9.40112]
[1746120178264,2.63518,1864.4,1864.3,1.07241]
[1746120178462,2.63518,1864.4,1864.3,2.64671]
[1746120180462,1.07241,1864.3,1864.2,7.82682]
[1746120180667,6.68921,1864.3,1864.2,5.932]
[1746120181069,1.07247,1864.2,1864.1,1.07251]
[1746120181262,2.67817,1864.2,1864.1,2.68871]
[1746120183262,5.08355,1864.3,1864.2,1.07247]
[1746120183572,1.07239,1864.4,1864.3,1.07241]
[1746120183775,9.47607937,1864.5,1864.4,1.07235]
[1746120184072,9.47605937,1864.5,1864.4,2.69525]
[1746120184869,10.56697424,1864.5,1864.4,2.69525]
[1746120186177,7.09878424,1864.5,1864.4,2.69525]
[1746120186765,7.09878424,1864.5,1864.4,8.62725]
[1746120187662,8.8734803,1864.7,1864.6,1.07224]
[1746120187863,8.8734803,1864.7,1864.6,4.54924]
[1746120188170,8.8734803,1864.7,1864.6,10.48124]
[1746120188465,8.8734803,1864.7,1864.6,12.93974]
[1746120188668,3.58044557,1864.8,1864.7,1.07218]
[1746120188868,3.58044557,1864.8,1864.7,3.53478]
[1746120189673,2.82458719,1864.8,1864.7,11.74258]
[1746120189860,2.82458719,1864.8,1864.7,6.74258]
[1746120190061,2.82458719,1864.8,1864.7,17.67458]
[1746120190476,2.82458719,1864.8,1864.7,12.67458]
[1746120191270,2.82458719,1864.8,1864.7,18.67458]
[1746120191477,2.82458719,1864.8,1864.7,13.67458]
[1746120192568,1.07191,1865.2,1865.1,1.07195]
[1746120193266,6.81369,1865.3,1865.2,1.07189]
[1746120193663,6.81369,1865.3,1865.2,2.67759]
[1746120198380,6.81369,1865.3,1865.2,1.6057]
[1746120198576,1.07189,1865.2,1865.1,1.88631]
[1746120198874,2.69979,1865.2,1865.1,1.88631]
[1746120199074,2.69979,1865.2,1865.1,3.54771]
[1746120200586,4.0373,1865.3,1865.1,3.54771]
[1746120200786,6.73703,1865.3,1865.2,2.73329]
[1746120201581,3.2078,1865.3,1865.2,8.66529]
[1746120201786,1.89324,1865.5,1865.4,1.07172]
[1746120201986,1.07174,1865.5,1865.4,1.07172]
[1746120202789,4.3395,1865.6,1865.5,1.07172]
[1746120203086,3.5156,1865.6,1865.5,1.07172]
[1746120203481,3.5156,1865.6,1865.5,1.88502]
[1746120204985,1.07183,1865.3,1865.2,5.932]
[1746120205177,1.07195,1865.1,1865.0,3.474]
[1746120205376,2.68002,1865.0,1864.7,14.12743582]
[1746120205586,1.07212,1864.8,1864.7,14.12743582]
[1746120205886,1.07212,1864.8,1864.7,15.72653582]
[1746120206085,1.7355,1864.8,1864.7,15.72653582]
[1746120206285,1.07204,1865.0,1864.7,14.65437582]
[1746120206477,1.07199,1865.1,1865.0,1.07201]
[1746120206679,4.27979,1865.1,1865.0,1.07201]
[1746120206877,3.61514,1865.2,1865.1,1.07195]
[1746120207584,1.87959,1865.2,1865.1,1.07195]
[1746120207779,0.8077,1865.2,1865.1,1.88785]
[1746120208090,1.87959,1865.2,1865.1,1.88785]
[1746120210590,1.87959,1865.2,1865.1,3.53215]
[1746120210989,3.48279,1865.2,1865.1,3.53215]
[1746120211587,1.07189,1865.2,1865.1,3.53215]
[1746120212892,2.67509,1865.2,1865.1,2.71625]
[1746120213187,2.67509,1865.2,1865.1,1.6443]
[1746120213392,2.67509,1865.2,1865.1,2.71625]
[1746120215593,1.07189,1865.2,1865.1,2.71625]
[1746120215991,4.27968,1865.3,1865.2,1.07189]
[1746120216190,4.27968,1865.3,1865.2,2.65359]
[1746120217190,4.27968,1865.3,1865.2,1.5817]
[1746120217491,5.88028,1865.3,1865.2,1.5817]
[1746120218096,5.88028,1865.3,1865.2,2.65359]
[1746120218790,4.8084,1865.3,1865.1,1.07192]
[1746120219093,1.07195,1865.1,1865.0,8.64717]
[1746120222387,1.07193,1865.2,1865.1,1.07195]
[1746120222586,1.07188,1865.3,1865.2,1.07183]
[1746120222794,1.07188,1865.3,1865.2,1.87703]
[1746120223188,4.27961,1865.4,1865.3,1.07183]
[1746120223387,1.07181,1865.4,1865.3,3.46853]
[1746120224591,1.07177,1865.5,1865.4,1.07173]
[1746120224789,1.07177,1865.5,1865.4,2.68223]
[1746120226496,1.07177,1865.5,1865.4,2.68228]
[1746120226702,2.70797,1865.5,1865.4,2.68228]
[1746120227185,2.70797,1865.5,1865.4,1.6105]
[1746120227992,1.07183,1865.3,1865.2,7.5054]
[1746120228187,4.27963,1865.3,1865.2,8.57729]
[1746120229994,3.2078,1865.3,1865.2,8.57729]
[1746120230200,4.27963,1865.3,1865.2,8.57729]
[1746120233900,4.27963,1865.3,1865.2,2.64529]
[1746120234700,4.27963,1865.3,1865.2,1.5734]
[1746120234906,5.14313,1865.3,1865.2,1.5734]
[1746120236199,1.07201,1865.0,1864.9,5.932]
[1746120236399,1.07212,1864.8,1864.7,18.21627582]
[1746120236902,1.07212,1864.8,1864.7,22.92522109]
[1746120237203,1.07212,1864.8,1864.7,21.85304109]
[1746120237398,2.70992,1864.8,1864.7,22.92522109]
[1746120237703,1.07212,1864.8,1864.7,22.92522109]
[1746120237904,1.07212,1864.8,1864.7,21.85304109]
[1746120238305,1.07212,1864.8,1864.7,22.92522109]
[1746120238504,2.78752,1864.8,1864.7,22.92522109]
[1746120239507,2.78752,1864.8,1864.7,21.85304109]
[1746120239806,5.99532,1864.8,1864.7,18.38004109]
[1746120240805,5.99532,1864.8,1864.7,10.76004109]
[1746120241205,5.99532,1864.8,1864.7,12.36944109]
[1746120241507,4.27992,1864.8,1864.7,13.44162109]
[1746120241712,4.27992,1864.8,1864.7,3.48038]
[1746120244111,1.07218,1864.7,1864.6,0.8346]
[1746120244312,2.70168,1864.7,1864.6,2.4501]
[1746120247710,1.07224,1864.6,1864.5,0.793]
[1746120248013,1.07229,1864.5,1864.4,10.2562]
[1746120248813,1.07229,1864.5,1864.4,11.9123]
[1746120249007,2.64919,1864.5,1864.4,3.473]
[1746120250112,2.64919,1864.5,1864.4,5.1291]
[1746120250302,2.64919,1864.5,1864.4,1.6561]
[1746120250503,1.07241,1864.3,1864.2,7.15460582]
[1746120250812,1.07247,1864.2,1864.1,10.76004109]
[1746120251009,1.07247,1864.2,1864.1,5.56653395]
[1746120251010,7.90197,1864.2,1864.1,5.56653395]
[1746120251211,12.90197,1864.2,1864.1,5.56653395]
[1746120251405,12.90197,1864.2,1864.1,1.32506395]
[1746120251909,1.07258,1864.0,1863.9,14.24655164]
[1746120252213,1.07264,1863.9,1863.8,7.1472704]
[1746120252513,2.76714,1863.9,1863.8,7.1472704]
[1746120253019,7.76714,1863.9,1863.8,7.1472704]
[1746120253216,11.24114,1863.9,1863.8,7.1472704]
[1746120254408,6.24114,1863.9,1863.8,7.1472704]
[1746120257516,5.1685,1863.9,1863.5,2.4126]
[1746120257710,1.07293,1863.4,1863.3,5.932]
[1746120257914,4.28073,1863.4,1863.3,1.6201]
[1746120263211,3.2078,1863.4,1863.2,2.74344]
[1746120263416,1.07298,1863.3,1863.2,0.8634]
[1746120263617,2.68418,1863.3,1863.2,0.8634]
[1746120264218,1.07298,1863.3,1863.2,2.5932]
[1746120265015,1.07298,1863.3,1863.2,3.4304]
[1746120265421,1.07298,1863.3,1863.2,4.50344]
[1746120265717,1.07298,1863.3,1863.2,3.4304]
[1746120265917,1.07298,1863.3,1863.2,4.50344]
[1746120266512,4.28077,1863.4,1863.3,1.07298]
[1746120266818,4.28077,1863.4,1863.3,2.76208]
[1746120266819,3.2078,1863.4,1863.3,2.76208]
[1746120267012,3.2078,1863.4,1863.3,7.76208]
[1746120267615,4.28066,1863.6,1863.5,1.07287]
[1746120268518,4.28066,1863.6,1863.5,1.88037]
[1746120269521,4.28066,1863.6,1863.5,0.8075]
[1746120270019,4.28066,1863.6,1863.5,2.3926]
[1746120270619,1.07293,1863.4,1863.3,5.932]
[1746120270922,4.28073,1863.4,1863.3,1.5851]
[1746120271918,1.07298,1863.3,1863.2,1.6508]
[1746120272120,1.07316,1863.0,1862.9,9.406]
[1746120272319,4.28096,1863.0,1862.9,12.17791]
[1746120272516,4.28096,1863.0,1862.9,11.1047]
[1746120272720,1.07316,1863.0,1862.9,11.1047]
[1746120273422,1.07316,1863.0,1862.9,12.8339]
[1746120273723,4.28096,1863.0,1862.9,9.3599]
[1746120275024,4.28096,1863.0,1862.9,10.43311]
[1746120275919,4.28096,1863.0,1862.9,9.3599]
[1746120276322,4.28096,1863.0,1862.9,10.43311]
[1746120276520,4.28096,1863.0,1862.9,9.3599]
[1746120277628,4.28096,1863.0,1862.9,10.43311]
[1746120277824,4.28096,1863.0,1862.9,4.50111]
[1746120278120,3.2078,1863.0,1862.9,4.50111]
[1746120278525,4.28096,1863.0,1862.9,4.50111]
[1746120279024,3.2078,1863.0,1862.9,4.50111]
[1746120279238,4.28096,1863.0,1862.9,2.5819]
[1746120279426,4.28096,1863.0,1862.9,3.65511]
[1746120280526,4.28096,1863.0,1862.9,2.5819]
[1746120282219,5.06826,1863.0,1862.9,2.5819]
[1746120282426,1.07321,1862.9,1862.8,0.8495]
[1746120282626,1.07321,1862.9,1862.8,2.5432]
[1746120285123,1.07321,1862.9,1862.8,1.6937]
[1746120285329,2.80681,1862.9,1862.8,1.6937]
[1746120285728,2.80681,1862.9,1862.8,2.76697]
[1746120286533,2.80681,1862.9,1862.8,1.6937]
[1746120286741,1.07327,1862.8,1862.7,0.7872]
[1746120287032,1.07327,1862.8,1862.5,5.932]
[1746120287033,1.07339,1862.6,1862.5,9.55424]
[1746120287331,1.07339,1862.6,1862.5,7.86014]
[1746120287630,1.07336,1862.7,1862.6,1.07334]
[1746120288130,1.07338,1862.7,1862.6,1.07336]
[1746120289131,1.07339,1862.6,1862.5,7.86012]
[1746120290432,1.07339,1862.6,1862.5,6.7867]
[1746120290730,1.07339,1862.6,1862.5,7.86014]
[1746120290929,1.07339,1862.6,1862.5,6.7867]
[1746120291734,1.0735,1862.4,1862.3,5.932]
[1746120293131,1.0735,1862.4,1862.3,7.00556]
[1746120293921,1.0735,1862.4,1862.3,5.932]
[1746120294126,1.0735,1862.4,1862.3,7.00556]
[1746120295235,1.07356,1862.3,1862.2,8.67948]
[1746120296227,1.07356,1862.4,1862.3,1.07354]
[1746120296534,1.07356,1862.3,1862.2,8.67947]
[1746120297235,1.07356,1862.4,1862.3,1.07354]
[1746120297532,1.0735,1862.5,1862.4,1.07348]
[1746120298129,1.07353,1862.4,1862.3,1.07351]
[1746120301037,1.07353,1862.4,1862.3,2.80531]
[1746120301240,1.07348,1862.5,1862.4,1.07345]
[1746120304539,5.89103,1862.8,1862.3,2.68377]
[1746120304743,1.07343,1862.6,1862.5,1.0734]
[1746120305234,1.07348,1862.5,1862.4,1.07345]
[1746120306534,1.07344,1862.6,1862.5,1.07339]
[1746120307037,1.0735,1862.5,1862.4,7.00545]
[1746120307843,1.0735,1862.5,1862.4,5.932]
[1746120308142,2.6672,1862.5,1862.4,7.0055]
[1746120308337,2.6672,1862.5,1862.4,5.932]
[1746120311841,1.0735,1862.5,1862.4,5.932]
[1746120312045,1.897,1862.5,1862.4,5.932]
[1746120312338,1.897,1862.5,1862.4,7.0055]
[1746120312544,4.28121,1862.6,1862.5,1.07344]
[1746120312740,3.2078,1862.6,1862.5,1.07344]
[1746120313547,4.28119,1862.6,1862.5,1.07344]
[1746120313846,1.07344,1862.5,1862.4,5.932]
[1746120314037,1.07344,1862.5,1862.4,7.0055]
[1746120314647,1.07344,1862.5,1862.4,7.00546]
[1746120316550,1.07344,1862.5,1862.4,5.932]
[1746120316753,1.93054,1862.5,1862.4,5.932]
[1746120316953,3.66554,1862.5,1862.4,5.932]
[1746120318160,4.47594,1862.5,1862.4,5.932]
[1746120318863,1.07356,1862.3,1862.2,3.475]
[1746120319164,4.28136,1862.3,1862.2,3.475]
[1746120320363,4.28136,1862.3,1862.2,4.3118]
[1746120320858,1.07356,1862.3,1862.2,4.3118]
[1746120321061,4.28136,1862.3,1862.2,5.9295]
[1746120321257,4.28136,1862.3,1862.2,2.4545]
[1746120321767,1.07356,1862.3,1862.2,2.4545]
[1746120321964,4.28136,1862.3,1862.2,2.4545]
[1746120326262,1.07352,1862.4,1862.2,2.4545]
[1746120326567,1.07352,1862.4,1862.3,1.7184]
[1746120326870,1.93762,1862.4,1862.3,1.7184]
[1746120327569,3.58502,1862.4,1862.3,1.7184]
[1746120331166,5.19539,1862.4,1861.8,7.0058]
[1746120331465,1.07379,1861.9,1861.8,9.406]
[1746120331664,1.07379,1861.9,1861.8,10.47985]
[1746120331873,4.28159,1861.9,1861.8,3.474]
[1746120332067,1.07385,1861.8,1861.7,16.6509662]
[1746120332267,1.07385,1861.8,1861.7,10.7189662]
[1746120332573,3.54785,1861.8,1861.7,10.7189662]
[1746120333872,3.54785,1861.8,1861.7,12.3343662]
[1746120334062,3.54785,1861.8,1861.7,10.7189662]
[1746120336276,6.76241216,1861.9,1861.6,2.4346]
[1746120336476,1.07391,1861.7,1861.6,1.89313]
[1746120336678,1.07391,1861.7,1861.6,0.8192]
[1746120336975,1.07391,1861.7,1861.6,1.89316]
[1746120337875,1.07396,1861.6,1861.5,5.932]
[1746120338268,1.07396,1861.6,1861.5,7.00602]
[1746120338975,1.07396,1861.6,1861.5,5.932]
[1746120339371,1.07396,1861.6,1861.5,7.5575]
[1746120339965,1.07408,1861.4,1861.3,5.932]
[1746120340170,1.07413,1861.4,1861.3,1.07414]
[1746120340678,1.07413,1861.4,1861.2,0.8303]
[1746120340679,4.28182,1861.5,1861.4,1.07408]
[1746120340875,1.07409,1861.4,1861.3,1.07409]
[1746120343379,4.28184,1861.5,1861.4,1.07408]
[1746120345376,4.28184,1861.5,1861.4,1.85708]
[1746120346082,4.28184,1861.5,1861.4,0.783]
[1746120348785,4.28184,1861.5,1861.4,1.85708]
[1746120350979,4.28184,1861.5,1861.4,3.58748]
[1746120351488,4.28184,1861.5,1861.4,2.5134]
[1746120352288,4.28184,1861.5,1861.4,3.58748]
[1746120352481,4.28184,1861.5,1861.4,2.5134]
[1746120352683,4.28184,1861.5,1861.4,3.58748]
[1746120353286,4.28184,1861.5,1861.4,2.5134]
[1746120355083,4.28184,1861.5,1861.4,3.58748]
[1746120355889,4.2767654,1861.5,1861.4,3.58748]
[1746120356092,3.2078,1861.7,1861.5,1.07397]
[1746120356284,4.28171,1861.7,1861.6,2.5124]
[1746120357981,4.28171,1861.7,1861.6,3.58636]
[1746120361193,1.07391,1861.7,1861.6,3.58636]
[1746120361984,11.11891,1861.9,1861.6,2.5124]
[1746120362189,1.07385,1861.8,1861.7,3.5165]
[1746120365196,4.28163,1861.9,1861.8,1.07385]
[1746120365396,4.28163,1861.9,1861.8,2.68405]
[1746120365691,8.6435,1862.1,1862.0,1.07373]
[1746120365692,4.2815,1862.1,1862.0,1.07373]
[1746120366099,1.07373,1862.0,1861.9,3.53115]
[1746120366490,1.07379,1861.9,1861.8,7.00583]
[1746120366792,4.28159,1861.9,1861.8,5.932]
[1746120366989,10.99459,1861.9,1861.8,5.932]
[1746120368986,11.10200715,1861.9,1861.8,5.932]
[1746120370299,1.07414,1861.3,1861.2,2.4298]
[1746120370596,1.07412,1861.4,1861.3,1.07414]
[1746120371798,1.07414,1861.3,1861.2,1.87865]
[1746120372400,1.07414,1861.3,1861.2,0.8045]
[1746120373106,1.07419,1861.2,1861.1,5.932]
[1746120373313,1.07431,1861.0,1860.9,1.5874]
[1746120373808,1.07431,1861.0,1860.9,2.66173]
[1746120373998,1.07431,1861.0,1860.9,0.7817]
[1746120374509,6.76853,1861.2,1860.9,0.7817]
[1746120374704,3.2078,1861.5,1861.3,1.07408]
[1746120374910,1.07418,1861.3,1861.2,1.07416]
[1746120375103,1.07418,1861.3,1861.2,1.87986]
[1746120376011,4.28198,1861.3,1861.2,0.8057]
[1746120376210,1.07425,1861.1,1861.0,10.48128]
[1746120376513,1.07425,1861.1,1861.0,0.8456]
[1746120376703,1.07443,1860.8,1860.7,3.2078]
[1746120376902,1.07448,1860.7,1860.6,7.00653]
[1746120377205,1.07448,1860.7,1860.6,6.7776]
[1746120377604,1.07448,1860.7,1860.6,7.85214]
[1746120377810,1.07448,1860.7,1860.6,6.7776]
[1746120378309,1.07448,1860.7,1860.6,7.85214]
[1746120379710,1.07448,1860.7,1860.5,7.15700056]
[1746120380010,1.07454,1860.6,1860.5,7.15700056]
[1746120380208,1.07454,1860.6,1860.5,9.01460056]
[1746120380403,1.07454,1860.6,1860.5,7.94000056]
[1746120380602,1.07454,1860.6,1860.5,9.01460056]
[1746120380804,1.07454,1860.6,1860.5,7.94000056]
[1746120381003,1.07454,1860.6,1860.5,9.01460056]
[1746120381207,1.07447,1860.8,1860.7,1.07447]
[1746120381710,9.36959,1861.0,1860.7,5.932]
[1746120381711,3.2078,1861.0,1860.7,5.932]
[1746120381908,4.28216,1861.0,1860.9,1.07437]
[1746120382205,3.2078,1861.0,1860.9,7.00637]
[1746120382406,2.4379,1861.2,1861.1,1.07425]
[1746120382407,1.07423,1861.2,1861.1,1.07425]
[1746120382611,1.07422,1861.2,1861.1,1.0742]
[1746120383806,1.07425,1861.1,1861.0,7.00627]
[1746120384410,4.28205,1861.1,1861.0,5.932]
[1746120386113,1.07431,1861.0,1860.9,1.07436]
[1746120388016,1.07437,1860.9,1860.8,7.6255]
[1746120388219,4.28217,1860.9,1860.8,7.6255]
[1746120388419,4.28217,1860.9,1860.8,5.932]
[1746120390714,1.07437,1860.9,1860.8,7.00643]
[1746120390916,1.07437,1860.9,1860.8,5.932]
[1746120391118,1.07437,1860.9,1860.8,7.00643]
[1746120391618,1.07437,1860.9,1860.8,5.932]
[1746120392217,1.07437,1860.9,1860.8,1.07443]
[1746120392619,1.07436,1861.0,1860.9,1.07433]
[1746120393817,1.07436,1861.0,1860.7,8.86636]
[1746120393818,3.2078,1861.1,1860.7,6.18016]
[1746120394018,1.07436,1861.0,1860.9,1.07432]
[1746120394422,4.2821,1861.1,1861.0,1.07431]
[1746120394722,3.2078,1861.1,1861.0,1.07431]
[1746120395313,4.28205,1861.1,1861.0,1.07431]
[1746120396419,1.07437,1860.9,1860.8,7.00638]
[1746120396822,4.28217,1860.9,1860.8,5.932]
[1746120397010,1.07437,1860.9,1860.8,5.932]
[1746120397815,1.07437,1860.9,1860.8,7.00643]
[1746120398421,1.07437,1860.9,1860.8,5.932]
[1746120403416,14.332,1860.9,1860.0,8.23184056]
[1746120403618,1.07483,1860.1,1860.0,7.15700056]
[1746120406320,1.07489,1860.0,1859.9,5.932]
[1746120406520,4.28269,1860.0,1859.9,5.932]
[1746120408423,4.31196082,1860.0,1859.9,5.932]
[1746120409627,1.07495,1859.9,1859.8,7.15700056]
[1746120409832,3.23707082,1860.0,1859.8,7.15700056]
[1746120410119,1.13349135,1859.9,1859.8,8.23198056]
[1746120410716,1.13349135,1859.9,1859.8,7.15700056]
[1746120410920,1.13349135,1859.9,1859.8,8.23200056]
[1746120411123,1.14869574,1859.9,1859.8,1.075]
[1746120412022,2.68776,1859.7,1859.2,9.1398]
[1746120412229,1.07527,1859.4,1859.3,1.07526]
[1746120413123,0.07374574,1859.5,1859.3,5.0]
[1746120413321,1.07521,1859.5,1859.4,1.00148426]
[1746120413522,1.07527,1859.4,1859.3,1.07525]
[1746120414021,1.07522,1859.5,1859.4,1.07519]
[1746120417128,1.07516,1859.6,1859.5,1.07512]
[1746120417331,5.89533,1859.8,1859.3,2.68824]
[1746120417521,1.07519,1859.6,1859.5,1.07513]
[1746120419526,1.07521,1859.5,1859.4,1.07518]
[1746120421332,1.07521,1859.5,1859.4,7.00718]
[1746120422835,1.07521,1859.5,1859.4,5.932]
[1746120423032,1.07521,1859.5,1859.4,7.00723]
[1746120423540,1.07529,1859.3,1859.2,9.473]
[1746120423741,1.07529,1859.3,1859.2,4.61635]
[1746120424543,1.07528,1859.4,1859.3,1.07525]
[1746120425140,1.07529,1859.3,1859.2,4.6163]
[1746120426040,1.07547,1859.0,1858.9,5.92666]
[1746120426240,1.07581,1858.4,1858.3,4.70575056]
[1746120426447,4.28361,1858.4,1858.3,3.23405523]
[1746120426945,9.28361,1858.4,1858.3,3.23405523]
[1746120427142,1.07587,1858.3,1858.2,7.98833001]
[1746120427447,1.07599,1858.1,1858.0,13.29054724]
[1746120427643,4.28379,1858.1,1858.0,13.29054724]
[1746120428440,3.2078,1858.1,1858.0,13.29054724]
[1746120428647,1.07597,1858.2,1858.0,13.29054724]